fUSD/lending_fUSD_20240204
["ID","MTS","AMOUNT","RATE_DAILY","PERIOD"]
[313287381,1707088246046,-155.35667322,0.00031721,2]
[313287382,1707088246055,-155.0,0.00031721,4]
[313287383,1707088246065,-1816.85072469,0.00031721,4]
[313287384,1707088246075,-309.59172365,0.00031721,4]
[313287385,1707088246085,-1254.21981707,0.00031721,4]
[313287386,1707088246095,-871.07262471,0.00031721,4]
[313287387,1707088246104,-155.09817536,0.00031721,4]
[313287388,1707088246114,-1674.05699034,0.00031722,5]
[313287389,1707088246124,-235.50858703,0.00031722,4]
[313287390,1707088246135,-395.53193855,0.00031722,4]
[313287391,1707088246146,-242.88266541,0.00031722,4]
[313287392,1707088246158,-8124.01570216,0.00031722,4]
[313287393,1707088246169,-155.0,0.00031722,4]
[313287394,1707088246179,-5796.56532684,0.000318,3]
[313287395,1707088246189,-1503.90331389,0.00031921,5]
[313287396,1707088246199,-170.973981,0.00032148,2]
[313287397,1707088246210,-1669.09499006,0.00032148,2]
[313287398,1707088246220,-173.6832764,0.00032148,2]
[313287399,1707088246230,-251.92996294,0.00032148,2]
[313287400,1707088246239,-200.0,0.00032387,2]
[313287401,1707088246248,-360.0,0.00032428,2]
[313287402,1707088246258,-191.22,0.00032433,2]
[313287403,1707088246268,-712.0,0.0003244,2]
[313287404,1707088246279,-231.44855723,0.000325,2]
[313287405,1707088246289,-3935.36927603,0.000325,4]
[313287406,1707088246300,-728.67,0.00032545,2]
[313287407,1707088246311,-1367.0,0.000326,7]
[313287408,1707088246320,-300.0,0.00032779,2]
[313287409,1707088246330,-16465.23260069,0.0003278,5]
[313287410,1707088246340,-3100.0,0.000329,12]
[313287411,1707088246349,-7943.39487054,0.00032971,9]
[313287412,1707088246358,-1450.0,0.00033,3]
[313287413,1707088246367,-12819.49724363,0.00033034,9]
[313287414,1707088246376,-21636.20650953,0.00033136,10]
[313287415,1707088246385,-666.39,0.00033294,2]
[313287416,1707088246395,-15902.41662415,0.00033363,10]
[313287417,1707088246405,-30507.67220658,0.00033396,10]
[313287418,1707088246414,-2502.02,0.000335,2]
[313287419,1707088246425,-2502.02,0.000335,2]
[313287420,1707088246435,-2502.02,0.000335,2]
[313287421,1707088246445,-2502.02,0.000335,2]
[313287422,1707088246455,-2502.02,0.000335,2]
[313287423,1707088246464,-2502.02,0.000335,2]
[313287424,1707088246474,-2502.02,0.000335,2]
[313287425,1707088246484,-2502.02,0.000335,2]
[313287426,1707088246493,-2502.02,0.000335,2]
[313287427,1707088246502,-2502.02,0.000335,2]
[313287428,1707088246512,-2502.02,0.000335,2]
[313287429,1707088246521,-2502.02,0.000335,2]
[313287430,1707088246530,-2502.02,0.000335,2]
[313287431,1707088246539,-2502.02,0.000335,2]
[313287432,1707088246548,-2502.02,0.000335,2]
[313287433,1707088246557,-2502.02,0.000335,2]
[313287434,1707088246566,-2502.02,0.000335,2]
[313287435,1707088246575,-2502.02,0.000335,2]
[313287436,1707088246584,-2502.02,0.000335,2]
[313287437,1707088246594,-2502.02,0.000335,2]
[313287438,1707088246603,-151.09684366,0.0003354,2]
[313287439,1707088246612,-407.73930706,0.00033641,22]
[313287440,1707088246621,-500.0,0.00033952,2]
[313287441,1707088246630,-200.0,0.00033952,2]
[313287442,1707088246639,-155.0,0.00034,4]
[313287443,1707088246648,-765.94522118,0.00034,4]
[313287444,1707088246657,-205.0,0.0003418,19]
[313287445,1707088246667,-10000.0,0.00034381,2]
[313287446,1707088246676,-153.89,0.000344,2]
[313287447,1707088246686,-153.89,0.000344,2]
[313287448,1707088246696,-3935.36927603,0.00034481,6]
[313287449,1707088246705,-150.0,0.00034899,2]
[313287450,1707088246714,-150.0,0.00034899,2]
[313287451,1707088246723,-1430.35357025,0.000349,2]
[313287452,1707088246733,-1430.35357023,0.000349,2]
[313287453,1707088246742,-1430.35357023,0.000349,2]
[313287454,1707088246751,-1430.35357023,0.000349,2]
[313287455,1707088246760,-1430.35357023,0.000349,2]
[313287456,1707088246769,-1430.35357023,0.000349,2]
[313287457,1707088246778,-1430.35357023,0.000349,2]
[313287458,1707088246787,-1430.35357023,0.000349,2]
[313287459,1707088246796,-50000.0,0.00035,5]
[313287460,1707088246805,-3900.0,0.00035,7]
[313287461,1707088246815,-450.0,0.00035,3]
[313287462,1707088246826,-4775.658413,0.00035,11]
[313287463,1707088246837,-1500.0,0.00035,3]
[313287464,1707088246847,-3104.55724496,0.00035,2]
[313287465,1707088246858,-4104.40817055,0.00035,2]
[313287466,1707088246868,-1503.90331389,0.00035036,7]
[313287467,1707088246879,-768.37885061,0.00035053,2]
[313287468,1707088246889,-242.09150057,0.00035054,4]
[313287469,1707088246900,-2218.19327361,0.00035054,4]
[313287470,1707088246912,-3099.10685403,0.00035055,4]
[313287471,1707088246921,-191.22152118,0.00035055,4]
[313287472,1707088246931,-2314.06344386,0.00035055,4]
[313287473,1707088246941,-482.6642192,0.00035055,4]
[313287474,1707088246950,-1430.35357023,0.00035214,2]
[313287475,1707088246959,-181.0205,0.00035398,7]
[313287476,1707088246972,-181.0205,0.00035498,6]
[313287477,1707088246983,-666.39,0.00035558,2]
[313287478,1707088246993,-181.0205,0.00035598,7]
[313287479,1707088247003,-150.0,0.00035616,2]
[313287480,1707088247012,-300.0,0.00035616,7]
[313287481,1707088247023,-150.0,0.00035616,12]
[313287482,1707088247033,-1076.52,0.00035616,2]
[313287483,1707088247043,-258.38,0.00035616,2]
[313287484,1707088247053,-181.0205,0.00035798,6]
[313287485,1707088247063,-151.09684366,0.00035949,2]
[313287486,1707088247074,-50000.0,0.00036,6]
[313287487,1707088247083,-181.0205,0.00036198,8]
[313287488,1707088247093,-171.0205,0.00036398,7]
[313287489,1707088247103,-200.0,0.00036405,2]
[313287490,1707088247112,-3935.36927603,0.00036461,9]
[313287491,1707088247121,-940.26264237,0.00036465,3]
[313287492,1707088247130,-189.0478081,0.00036465,3]
[313287493,1707088247139,-1217.23534526,0.00036465,3]
[313287494,1707088247148,-1193.09322612,0.00036465,3]
[313287495,1707088247157,-1000.0,0.00036465,10]
[313287496,1707088247166,-175.17412252,0.00036465,3]
[313287497,1707088247175,-802.73101285,0.00036465,3]
[313287498,1707088247185,-498.73059833,0.00036465,3]
[313287499,1707088247194,-171.0205,0.00036498,8]
[313287500,1707088247203,-300.0,0.00036499,2]
[313287501,1707088247212,-50000.0,0.000365,5]
[313287502,1707088247221,-171.0205,0.00036598,7]
[313287503,1707088247230,-1430.35357023,0.00036793,2]
[313287504,1707088247239,-171.0205,0.00036798,8]
[313287505,1707088247249,-50000.0,0.00037,7]
[313287506,1707088247258,-671.30355202,0.00037,7]
[313287507,1707088247268,-1000.0,0.00037,2]
[313287508,1707088247277,-8000.0,0.00037,7]
[313287509,1707088247286,-1550.0,0.00037,3]
[313287510,1707088247295,-205.0,0.00037049,24]
[313287511,1707088247304,-2502.02,0.000371,3]
[313287512,1707088247313,-2502.02,0.000371,3]
[313287513,1707088247322,-2502.02,0.000371,3]
[313287514,1707088247331,-2502.02,0.000371,3]
[313287515,1707088247340,-2502.02,0.000371,3]
[313287516,1707088247349,-2502.02,0.000371,3]
[313287517,1707088247358,-2502.02,0.000371,3]
[313287518,1707088247367,-2502.02,0.000371,3]
[313287519,1707088247376,-2502.02,0.000371,3]
[313287520,1707088247385,-2502.02,0.000371,3]
[313287521,1707088247394,-2502.02,0.000371,3]
[313287522,1707088247403,-2502.02,0.000371,3]
[313287523,1707088247412,-2502.02,0.000371,3]
[313287524,1707088247421,-2502.02,0.000371,3]
[313287525,1707088247430,-2502.02,0.000371,3]
[313287526,1707088247439,-2502.02,0.000371,3]
[313287527,1707088247448,-2502.02,0.000371,3]
[313287528,1707088247457,-2502.02,0.000371,3]
[313287529,1707088247466,-2502.02,0.000371,3]
[313287530,1707088247475,-2502.02,0.000371,3]
[313287531,1707088247484,-171.0205,0.00037198,9]
[313287532,1707088247493,-171.0205,0.00037398,8]
[313287533,1707088247502,-171.0205,0.00037498,9]
[313287534,1707088247511,-10000.0,0.00037562,3]
[313287535,1707088247521,-171.0205,0.00037598,8]
[313287536,1707088247530,-252.34797546,0.00037678,4]
[313287537,1707088247539,-27456.78,0.000377,3]
[313287538,1707088247548,-171.0205,0.00037798,9]
[313287539,1707088247557,-666.39,0.00037821,2]
[313287540,1707088247566,-4056.9074581,0.00037874,2]
[313287541,1707088247575,-300.0,0.00037899,2]
[313287542,1707088247584,-300.0,0.00037899,2]
[313287543,1707088247593,-300.0,0.00037899,2]
[313287544,1707088247603,-621870.270359,0.000379,3]
[313287545,1707088247612,-450.0,0.0003797,2]
[313287546,1707088247621,-150.0,0.00037999,2]
[313287547,1707088247631,-150.0,0.00037999,2]
[313287548,1707088247640,-50000.0,0.00038,8]
[313287549,1707088247650,-20000.0,0.00038,3]
[313287550,1707088247659,-1765.28132649,0.00038,2]
[313287551,1707088247668,-799.604117,0.00038,7]
[313287552,1707088247677,-1503.90331389,0.00038151,8]
[313287553,1707088247686,-171.0205,0.00038198,9]
[313287554,1707088247696,-150.0,0.00038356,2]
[313287555,1707088247705,-1430.35357023,0.00038371,2]
[313287556,1707088247714,-171.0205,0.00038398,9]
[313287557,1707088247723,-3935.36927603,0.00038441,11]
[313287558,1707088247732,-171.0205,0.00038498,9]
[313287559,1707088247741,-151.09684366,0.00038531,2]
[313287560,1707088247751,-171.0205,0.00038598,9]
[313287561,1707088247760,-204.83004642,0.000387,7]
[313287562,1707088247769,-171.0205,0.00038798,9]
[313287563,1707088247778,-21428.89231841,0.000388,4]
[313287564,1707088247787,-200.0,0.00038857,2]
[313287565,1707088247796,-3336.05080517,0.0003888,2]
[313287566,1707088247805,-3336.05080517,0.0003888,2]
[313287567,1707088247814,-3336.05080517,0.0003888,2]
[313287568,1707088247822,-3336.05080517,0.0003888,2]
[313287569,1707088247831,-3336.05080517,0.0003888,2]
[313287570,1707088247840,-4022.05534833,0.000389,15]
[313287571,1707088247851,-153.89,0.000389,3]
[313287572,1707088247861,-153.89,0.000389,3]
[313287573,1707088247870,-282.99585299,0.0003898,2]
[313287574,1707088247881,-63476.35164232,0.00038998,3]
[313287575,1707088247895,-300.0,0.00038999,2]
[313287576,1707088248013,-50000.0,0.00039,9]
[313287577,1707088248023,-1433.61374358,0.00039,2]
[313287578,1707088248032,-309.52011088,0.00039,5]
[313287579,1707088248040,-1600.0,0.00039,3]
[313287580,1707088248050,-407.73930706,0.00039011,30]
[313287581,1707088248061,-171.0205,0.00039198,10]
[313287582,1707088248070,-200.0,0.0003926,2]
[313287583,1707088248080,-150.0,0.00039366,2]
[313287584,1707088248091,-171.0205,0.00039398,14]
[313287585,1707088248101,-171.0205,0.00039498,10]
[313287586,1707088248110,-5000.0,0.000395,4]
[313287587,1707088248119,-156.80178581,0.00039589,7]
[313287588,1707088248130,-3336.05080517,0.00039589,2]
[313287589,1707088248139,-171.0205,0.00039598,14]
[313287590,1707088248150,-1000.0,0.000397,2]
[313287591,1707088248160,-20592.54,0.000397,4]
[313287592,1707088248170,-151.0,0.0003972,4]
[313287593,1707088248180,-171.0205,0.00039798,10]
[313287594,1707088248189,-205.0,0.00039918,28]
[313287595,1707088248202,-1430.35357023,0.0003995,5]
[313287596,1707088248211,-336.53830173,0.0003998,5]
[313287597,1707088248221,-300.0,0.00039999,2]
[313287598,1707088248231,-100000.0,0.0004,20]
[313287599,1707088248241,-4390.00732164,0.0004,4]
[313287600,1707088248250,-155.0,0.0004,2]
[313287601,1707088248259,-83704.56321334,0.0004,4]
[313287602,1707088248268,-22117.68647422,0.0004,4]
[313287603,1707088248278,-1500.0,0.0004,4]
[313287604,1707088248289,-1088.67175974,0.0004,4]
[313287605,1707088248299,-2279.09360945,0.0004,4]
[313287606,1707088248308,-5000.0,0.0004,30]
[313287607,1707088248317,-571.36387681,0.0004,4]
[313287608,1707088248329,-54488.91732862,0.0004,4]
[313287609,1707088248339,-5000.0,0.0004,2]
[313287610,1707088248349,-388.87,0.0004,3]
[313287611,1707088248359,-381.43809794,0.0004,9]
[313287612,1707088248369,-255.0,0.0004,12]
[313287613,1707088248379,-255.0,0.0004,12]
[313287614,1707088248388,-255.0,0.0004,12]
[313287615,1707088248397,-255.0,0.0004,12]
[313287616,1707088248406,-255.0,0.0004,12]
[313287617,1707088248415,-255.0,0.0004,12]
[313287618,1707088248425,-255.0,0.0004,12]
[313287619,1707088248434,-792.6404,0.0004,2]
[313287620,1707088248443,-666.39,0.00040085,2]
[313287621,1707088248454,-171.0205,0.00040198,10]
[313287622,1707088248465,-152.45494241,0.00040282,30]
[313287623,1707088248475,-150.0,0.00040375,2]
[313287624,1707088248484,-171.0205,0.00040398,16]
[313287625,1707088248493,-3935.36927603,0.00040421,14]
[313287626,1707088248502,-171.0205,0.00040498,10]
[313287627,1707088248512,-20000.0,0.000405,3]
[313287628,1707088248521,-151.0,0.00040531,2]
[313287629,1707088248530,-171.0205,0.00040598,17]
[313287630,1707088248540,-2502.02,0.000406,4]
[313287631,1707088248549,-2502.02,0.000406,4]
[313287632,1707088248559,-2502.02,0.000406,4]
[313287633,1707088248569,-2502.02,0.000406,4]
[313287634,1707088248578,-2502.02,0.000406,4]
[313287635,1707088248586,-2502.02,0.000406,4]
[313287636,1707088248596,-2502.02,0.000406,4]
[313287637,1707088248605,-2502.02,0.000406,4]
[313287638,1707088248615,-2502.02,0.000406,4]
[313287639,1707088248624,-2502.02,0.000406,4]
[313287640,1707088248635,-2502.02,0.000406,4]
[313287641,1707088248645,-2502.02,0.000406,4]
[313287642,1707088248655,-2502.02,0.000406,4]
[313287643,1707088248665,-2502.02,0.000406,4]
[313287644,1707088248674,-2502.02,0.000406,4]
[313287645,1707088248684,-2502.02,0.000406,4]
[313287646,1707088248693,-2502.02,0.000406,4]
[313287647,1707088248703,-2502.02,0.000406,4]
[313287648,1707088248714,-2502.02,0.000406,4]
[313287649,1707088248723,-2502.02,0.000406,4]
[313287650,1707088248732,-1000.0,0.0004062,10]
[313287651,1707088248741,-171.0205,0.00040798,10]
[313287652,1707088248750,-500.0,0.00040867,7]
[313287653,1707088248759,-500.0,0.00040867,7]
[313287654,1707088248768,-500.0,0.00040867,7]
[313287655,1707088248777,-500.0,0.00040867,7]
[313287656,1707088248786,-215.64,0.00040867,7]
[313287657,1707088248794,-500.0,0.00040867,7]
[313287658,1707088248803,-500.0,0.00040867,7]
[313287659,1707088248812,-500.0,0.00040867,7]
[313287660,1707088248821,-500.0,0.00040867,7]
[313287661,1707088248830,-500.0,0.00040867,7]
[313287662,1707088248839,-500.0,0.00040867,7]
[313287663,1707088248848,-500.0,0.00040867,7]
[313287664,1707088248857,-500.0,0.00040867,7]
[313287665,1707088248866,-500.0,0.00040867,7]
[313287666,1707088248875,-500.0,0.00040867,7]
[313287667,1707088248885,-500.0,0.00040867,7]
[313287668,1707088248898,-543.56,0.00040867,7]
[313287669,1707088248907,-600.0,0.000409,14]
[313287670,1707088248916,-634.15196385,0.00040915,13]
[313287671,1707088248925,-152.0,0.00040977,3]
[313287672,1707088248935,-300.0,0.00040999,2]
[313287673,1707088248944,-92452.46062424,0.00041,21]
[313287674,1707088248991,-734.96,0.00022531,2]
[313287675,1707088249000,-7547.53937576,0.00041,21]
[313287676,1707088249009,-6390.80687559,0.00041,3]
[313287677,1707088249021,-4234.17134441,0.00041,3]
[313287678,1707088249032,-9375.02178,0.00041,3]
[313287679,1707088249042,-33.94430539,0.00041,3]
[313287680,1707088249055,-1616.05569461,0.00041,3]
[313287681,1707088249065,-1262.30714219,0.00041028,4]
[313287682,1707088249075,-522.74382305,0.00041096,4]
[313287683,1707088249085,-151.0,0.00041096,7]
[313287684,1707088249095,-151.0,0.00041096,7]
[313287685,1707088249106,-151.0,0.00041096,7]
[313287686,1707088249117,-151.0,0.00041096,7]
[313287687,1707088249126,-151.0,0.00041096,7]
[313287688,1707088249138,-151.0,0.00041096,7]
[313287689,1707088249148,-151.0,0.00041096,7]
[313287690,1707088249158,-151.0,0.00041096,7]
[313287691,1707088249168,-151.0,0.00041096,7]
[313287692,1707088249176,-151.0,0.00041096,7]
[313287693,1707088249186,-151.0,0.00041096,7]
[313287694,1707088249195,-151.0,0.00041096,7]
[313287695,1707088249204,-222.123348,0.00041096,14]
[313287696,1707088249213,-583.66541534,0.00041099,4]
[313287697,1707088249224,-195.87615889,0.00041099,4]
[313287698,1707088249234,-199.25645533,0.00041099,4]
[313287699,1707088249244,-170.75252884,0.00041099,4]
[313287700,1707088249254,-10671.30391219,0.000411,7]
[313287701,1707088249267,-336.23242113,0.000411,7]
[313287702,1707088249564,-603.5255592,0.0002253,2]
[313287703,1707088249597,-8545.056,0.0002253,2]
[313287704,1707088317975,156.32670208,0.0002243,2]
[313287705,1707088332805,6735.6551,0.00022475,2]
[313287706,1707088396475,472.5176,0.0002243,2]
[313287707,1707088406201,2863.4118,0.00022475,2]
[313287708,1707088660498,156.32670207,0.0002243,2]
[313287709,1707089305255,267.51538496,0.0002243,2]
[313287710,1707089327229,267.51538496,0.0002243,2]
[313287711,1707089351230,267.51538496,0.0002243,2]
[313287712,1707089373247,267.51538496,0.0002243,2]
[313287713,1707089393439,267.51538496,0.0002243,2]
[313287714,1707089415232,267.6104557,0.0002243,2]
[313287715,1707089431258,267.42031422,0.0002243,2]
[313287729,1707089431543,-150.0,0.00022529,2]
[313287731,1707089431553,-725.73,0.0002253,2]
[313287733,1707089431753,-334.51940779,0.0002253,2]
[313287734,1707089431773,-381.92059221,0.0002253,2]
[313287735,1707089431784,-58.69443825,0.0002253,2]
[313287736,1707089431797,-671.09556175,0.0002253,2]
[313287737,1707089431807,-716.63,0.0002253,2]
[313287738,1707089431817,-539.06701505,0.0002253,2]
[313287739,1707089431828,-189.23298495,0.0002253,2]
[313287740,1707089431837,-722.21,0.0002253,2]
[313287741,1707089431847,-300.0,0.0002269,2]
[313287742,1707089431856,-305.30270407,0.0002269,2]
[313287744,1707089431865,-455.59970776,0.00022899,2]
[313287746,1707089431874,-200.0,0.00025,2]
[313287748,1707089431883,-26983.0,0.000278,2]
[313287750,1707089431895,-2884.0,0.000278,2]
[313287752,1707089431905,-1632.45,0.00029233,2]
[313287754,1707089431914,-155.0,0.000295,3]
[313287756,1707089431923,-499.99,0.000295,2]
[313287758,1707089431933,-627.1008722,0.0003,6]
[313287760,1707089431942,-5637.40464828,0.0003,2]
[313287762,1707089431952,-623.36148723,0.0003,2]
[313287763,1707089431967,-1347.41823934,0.0003,2]
[313287764,1707089431976,-355.91459946,0.0003,2]
[313287765,1707089431987,-144.08540054,0.0003,2]
[313287766,1707089431996,-155.0,0.0003,2]
[313287767,1707089432005,-200.0,0.00031149,3]
[313287768,1707089432013,-200.0,0.00033027,5]
[313287769,1707089432022,-460.42749211,0.00033498,2]
[313287770,1707089432031,-1000.0,0.00033499,2]
[313287771,1707089432040,-433.45982735,0.000335,10]
[313287772,1707089432051,-17281.3905283,0.000335,10]
[313287773,1707089432060,-11551.43318541,0.000335,10]
[313287774,1707089432069,-7962.50400714,0.000335,10]
[313287775,1707089432078,-13728.45249296,0.000335,10]
[313287777,1707089432087,-1001.56,0.000335,2]
[313287779,1707089432096,-1001.56,0.000335,2]
[313287781,1707089432105,-1001.56,0.000335,2]
[313287783,1707089432115,-1001.56,0.000335,2]
[313287785,1707089432124,-1001.56,0.000335,2]
[313287787,1707089432132,-1001.56,0.000335,2]
[313287789,1707089432143,-1001.56,0.000335,2]
[313287791,1707089432152,-1001.56,0.000335,2]
[313287794,1707089432165,-1001.56,0.000335,2]
[313287795,1707089432174,-1001.56,0.000335,2]
[313287796,1707089432183,-1001.56,0.000335,2]
[313287797,1707089432193,-1001.56,0.000335,2]
[313287798,1707089432202,-1001.56,0.000335,2]
[313287799,1707089432211,-1001.56,0.000335,2]
[313287800,1707089432220,-1001.56,0.000335,2]
[313287801,1707089432229,-1001.56,0.000335,2]
[313287802,1707089432239,-1001.56,0.000335,2]
[313287804,1707089432250,-1001.56,0.000335,2]
[313287806,1707089432259,-1001.56,0.000335,2]
[313287807,1707089432268,-1001.56,0.000335,2]
[313287809,1707089432276,-388.57,0.00033774,2]
[313287811,1707089432286,-155.0,0.00034,4]
[313287812,1707089432295,-765.94522118,0.00034,4]
[313287813,1707089432304,-152.45494244,0.00034433,7]
[313287814,1707089432314,-800.0,0.00034963,2]
[313287815,1707089432324,-889.93,0.00035193,2]
[313287816,1707089432333,-150.0,0.00035261,2]
[313287817,1707089432342,-172.89,0.0003529,2]
[313287818,1707089432351,-250.0,0.00035337,2]
[313287819,1707089432360,-175.25,0.00035362,120]
[313287820,1707089432369,-250.0,0.00035412,111]
[313287821,1707089432379,-250.0,0.00035448,2]
[313287822,1707089432388,-200.0,0.00035593,2]
[313287823,1707089432397,-1930.73,0.00035641,2]
[313287824,1707089432407,-186.11,0.00035722,2]
[313287825,1707089432416,-151.95,0.00035732,2]
[313287826,1707089432427,-1000.0,0.00035783,2]
[313287827,1707089432437,-209.36,0.00035882,2]
[313287828,1707089432448,-388.57,0.00036038,2]
[313287829,1707089432458,-600.85095486,0.00036399,4]
[313287830,1707089432468,-11529.4343,0.00036399,2]
[313287831,1707089432479,-278.55165562,0.00036499,3]
[313287832,1707089432489,-1000.0,0.00036499,10]
[313287833,1707089432502,-173.72537772,0.00036499,3]
[313287834,1707089432512,-291.64776045,0.00036499,3]
[313287835,1707089432522,-365.80108996,0.00036499,3]
[313287836,1707089432532,-176.6411384,0.00036499,3]
[313287837,1707089432542,-217.463804,0.00036499,3]
[313287838,1707089432552,-1000.0,0.00036499,10]
[313287839,1707089432562,-1000.0,0.00036499,10]
[313287840,1707089432571,-224.42876925,0.00036499,3]
[313287841,1707089432580,-255.30311133,0.00036499,3]
[313287842,1707089432591,-182.7778345,0.00037,7]
[313287843,1707089432600,-1000.0,0.00037,2]
[313287844,1707089432612,-1001.56,0.000371,3]
[313287845,1707089432624,-1001.56,0.000371,3]
[313287846,1707089432634,-1001.56,0.000371,3]
[313287847,1707089432645,-1001.56,0.000371,3]
[313287848,1707089432655,-1001.56,0.000371,3]
[313287849,1707089432664,-1001.56,0.000371,3]
[313287850,1707089432675,-1001.56,0.000371,3]
[313287851,1707089432684,-1001.56,0.000371,3]
[313287852,1707089432693,-1001.56,0.000371,3]
[313287853,1707089432703,-1001.56,0.000371,3]
[313287854,1707089432712,-1001.56,0.000371,3]
[313287855,1707089432721,-1001.56,0.000371,3]
[313287856,1707089432733,-1001.56,0.000371,3]
[313287857,1707089432742,-1001.56,0.000371,3]
[313287858,1707089432752,-1001.56,0.000371,3]
[313287859,1707089432762,-1001.56,0.000371,3]
[313287860,1707089432773,-1001.56,0.000371,3]
[313287861,1707089432785,-1001.56,0.000371,3]
[313287862,1707089432795,-1001.56,0.000371,3]
[313287863,1707089432805,-1001.56,0.000371,3]
[313287864,1707089432815,-161.0205,0.00037198,8]
[313287865,1707089432824,-1000.0,0.00037299,2]
[313287866,1707089432837,-161.0205,0.00037498,8]
[313287867,1707089432846,-500.0,0.00037758,2]
[313287868,1707089432856,-200.0,0.00037758,2]
[313287869,1707089432865,-161.0205,0.00037798,8]
[313287870,1707089432876,-150.0,0.00038,21]
[313287871,1707089432887,-161.0205,0.00038198,9]
[313287872,1707089432896,-388.57,0.00038302,2]
[313287873,1707089432906,-150.0,0.00038356,2]
[313287874,1707089432916,-171.0205,0.00038498,9]
[313287875,1707089432925,-171.0205,0.00038798,9]
[313287876,1707089432934,-21428.89231841,0.000388,4]
[313287877,1707089432944,-1334.42032208,0.0003888,2]
[313287878,1707089432954,-1334.42032207,0.0003888,2]
[313287879,1707089432963,-1334.42032207,0.0003888,2]
[313287880,1707089432973,-4022.05534833,0.000389,15]
[313287881,1707089432982,-282.99585299,0.0003898,2]
[313287882,1707089432992,-1433.61374358,0.00039,2]
[313287883,1707089433002,-171.0205,0.00039198,10]
[313287884,1707089433011,-180.0,0.00039211,2]
[313287885,1707089433020,-150.0,0.00039366,2]
[313287886,1707089433030,-172.89,0.000394,2]
[313287887,1707089433039,-171.0205,0.00039498,10]
[313287888,1707089433049,-5000.0,0.000395,4]
[313287889,1707089433058,-1334.42032207,0.00039633,2]
[313287890,1707089433067,-1000.0,0.000397,2]
[313287891,1707089433077,-205.0,0.00039787,2]
[313287892,1707089433086,-2500.0,0.0003979,2]
[313287893,1707089433096,-171.0205,0.00039798,10]
[313287894,1707089433105,-304.921969,0.000398,14]
[313287895,1707089433115,-1879.66448208,0.000398,9]
[313287896,1707089433124,-744.0,0.0003989,5]
[313287897,1707089433134,-572.14142813,0.0003989,2]
[313287898,1707089433144,-66845.2733805,0.0003989,10]
[313287899,1707089433154,-600.85095487,0.00039899,5]
[313287900,1707089433163,-1000.0,0.00039899,2]
[313287901,1707089433172,-4221.6086,0.00039899,2]
[313287902,1707089433182,-157.17895382,0.00039899,13]
[313287903,1707089433191,-517.16610711,0.00039899,2]
[313287904,1707089433200,-1000.0,0.000399,15]
[313287905,1707089433210,-55370.03851622,0.000399,2]
[313287906,1707089433223,-560.89301711,0.000399,2]
[313287907,1707089433235,-562.35288802,0.000399,2]
[313287908,1707089433249,-727.69660047,0.000399,2]
[313287909,1707089433261,-480.34451528,0.000399,2]
[313287910,1707089433277,-600.0,0.000399,2]
[313287911,1707089433289,-525.22839655,0.000399,2]
[313287912,1707089433300,-15660.48690264,0.000399,2]
[313287913,1707089433311,-640.14719797,0.000399,2]
[313287923,1707089437591,-321.6,0.00035934,2]
[313287924,1707089437601,-4699.65363054,0.000399,2]
[313287925,1707089437613,-2349.81200394,0.000399,2]
[313287926,1707089437647,-134659.70534719,0.000399,2]
[313287927,1707089437658,-2720.53516472,0.000399,2]
[313287928,1707089437759,-609.17786829,0.000399,2]